fUSD/lending_fUSD_20260309
["ID","MTS","AMOUNT","RATE_DAILY","PERIOD"]
[408027051,1773046241401,-500.0,0.00019661,2]
[408027052,1773046241411,-500.0,0.00019661,2]
[408027053,1773046241420,-500.0,0.00019661,2]
[408027054,1773046241430,-500.0,0.00019661,2]
[408027055,1773046241440,-500.0,0.00019661,2]
[408027056,1773046241449,-575.90742508,0.00019661,2]
[408027057,1773046241458,-500.0,0.00019673,2]
[408027058,1773046241468,-150.0,0.00019673,2]
[408027059,1773046241477,-500.0,0.00019673,2]
[408027060,1773046241486,-500.0,0.00019673,2]
[408027061,1773046241496,-150.0,0.00019673,2]
[408027062,1773046241505,-500.0,0.00019673,2]
[408027063,1773046241514,-500.0,0.00019673,2]
[408027064,1773046241523,-492.0,0.00019673,2]
[408027065,1773046241532,-1045.0,0.00019673,2]
[408027066,1773046241541,-500.0,0.00019673,2]
[408027067,1773046241550,-150.0,0.00019673,2]
[408027068,1773046241559,-200.0,0.00019673,2]
[408027069,1773046241568,-500.0,0.00019673,2]
[408027070,1773046241577,-500.0,0.00019673,2]
[408027071,1773046241588,-500.0,0.00019673,2]
[408027072,1773046241597,-500.0,0.00019673,2]
[408027073,1773046241607,-150.0,0.00019673,2]
[408027074,1773046241616,-500.0,0.00019673,2]
[408027075,1773046241625,-500.0,0.00019673,2]
[408027076,1773046241635,-863.0,0.00019673,2]
[408027077,1773046241644,-500.0,0.00019673,2]
[408027078,1773046241654,-500.0,0.00019673,2]
[408027079,1773046241663,-895.0,0.00019673,2]
[408027080,1773046241672,-500.0,0.00019673,2]
[408027081,1773046241685,-1828.0,0.00019673,2]
[408027082,1773046241695,-575.20339411,0.00019693,2]
[408027083,1773046241705,-162.63455783,0.00019699,2]
[408027084,1773046241714,-800.0,0.000197,7]
[408027085,1773046241725,-7999.41632174,0.00019704,2]
[408027086,1773046241734,-772.2074,0.00019711,2]
[408027087,1773046241743,-500.0,0.00019725,2]
[408027088,1773046241753,-500.0,0.00019725,2]
[408027089,1773046241763,-7999.41632169,0.00019726,2]
[408027090,1773046241772,-400.0,0.00019726,2]
[408027091,1773046241781,-150.0,0.00019726,2]
[408027092,1773046241790,-150.0,0.00019726,2]
[408027093,1773046241799,-285.50154825,0.00019726,2]
[408027094,1773046241808,-500.0,0.00019726,2]
[408027095,1773046241817,-150.0,0.00019726,2]
[408027096,1773046241827,-150.0,0.00019726,2]
[408027097,1773046241836,-150.0,0.00019726,2]
[408027098,1773046241845,-500.0,0.00019726,2]
[408027099,1773046241854,-1000.0,0.00019726,2]
[408027100,1773046241863,-575.20339411,0.00019727,2]
[408027101,1773046241872,-500.0,0.00019728,2]
[408027102,1773046241882,-150.0,0.00019728,2]
[408027103,1773046241891,-500.0,0.00019728,2]
[408027104,1773046241901,-500.0,0.00019728,2]
[408027105,1773046241911,-500.0,0.00019728,2]
[408027106,1773046241920,-500.0,0.00019728,2]
[408027107,1773046241929,-492.0,0.00019728,2]
[408027108,1773046241939,-1045.0,0.00019728,2]
[408027109,1773046241948,-500.0,0.00019728,2]
[408027110,1773046242192,-150.0,0.00019728,2]
[408027111,1773046242202,-500.0,0.00019728,2]
[408027112,1773046242211,-500.0,0.00019728,2]
[408027113,1773046242220,-500.0,0.00019728,2]
[408027114,1773046242229,-306.0,0.00019728,2]
[408027115,1773046242239,-150.0,0.00019728,2]
[408027116,1773046242248,-500.0,0.00019728,2]
[408027117,1773046242258,-500.0,0.00019728,2]
[408027118,1773046242268,-863.0,0.00019728,2]
[408027119,1773046242286,-500.0,0.00019728,2]
[408027120,1773046242297,-500.0,0.00019728,2]
[408027121,1773046242306,-895.0,0.00019728,2]
[408027122,1773046242317,-500.0,0.00019728,2]
[408027123,1773046242326,-1828.0,0.00019728,2]
[408027124,1773046242337,-32918.3967,0.00019733,2]
[408027125,1773046242347,-7999.41632169,0.00019748,2]
[408027126,1773046242356,-350.0,0.00019758,2]
[408027127,1773046242366,-250.0,0.00019759,2]
[408027128,1773046242375,-152.0,0.00019762,7]
[408027129,1773046242385,-575.20339411,0.00019762,2]
[408027130,1773046242394,-2500.0,0.00019767,2]
[408027131,1773046242405,-504.66308381,0.00019769,2]
[408027132,1773046242415,-500.0,0.00019769,2]
[408027133,1773046242425,-504.92020981,0.00019769,2]
[408027134,1773046242434,-500.0,0.00019769,2]
[408027135,1773046242444,-500.0,0.00019769,2]
[408027137,1773046242453,-7999.41632169,0.00019769,2]
[408027138,1773046242463,-250.0,0.0001977,2]
[408027139,1773046242472,-550.0,0.00019771,2]
[408027140,1773046242481,-182.5,0.00019772,2]
[408027141,1773046242490,-500.0,0.00019773,2]
[408027142,1773046242500,-501.66559118,0.00019773,2]
[408027143,1773046242509,-500.0,0.00019773,2]
[408027144,1773046242518,-665.0,0.00019773,2]
[408027145,1773046242528,-665.0,0.00019775,2]
[408027146,1773046242537,-150.0,0.00019781,2]
[408027147,1773046242547,-250.0,0.00019781,2]
[408027148,1773046242556,-600.0,0.00019781,2]
[408027149,1773046242565,-232.79888752,0.00019781,2]
[408027150,1773046242574,-152.96458514,0.00019781,2]
[408027151,1773046242584,-167.87375586,0.00019781,2]
[408027152,1773046242593,-500.0,0.00019781,2]
[408027153,1773046242603,-500.0,0.00019782,2]
[408027154,1773046242612,-150.0,0.00019782,2]
[408027155,1773046242622,-500.0,0.00019782,2]
[408027156,1773046242632,-500.0,0.00019782,2]
[408027157,1773046242642,-500.0,0.00019782,2]
[408027158,1773046242651,-500.0,0.00019782,2]
[408027159,1773046242661,-492.0,0.00019782,2]
[408027161,1773046242671,-1045.0,0.00019782,2]
[408027162,1773046242683,-605.47740234,0.00019782,2]
[408027163,1773046242691,-205.23130806,0.00019782,2]
[408027164,1773046242701,-500.0,0.00019782,2]
[408027165,1773046242710,-452.35755136,0.00019782,2]
[408027166,1773046242719,-646.01614418,0.00019782,2]
[408027167,1773046242729,-150.0,0.00019782,2]
[408027168,1773046242738,-354.61846768,0.00019782,2]
[408027169,1773046242747,-500.0,0.00019782,2]
[408027170,1773046242757,-863.0,0.00019782,2]
[408027171,1773046242767,-500.0,0.00019782,2]
[408027172,1773046242776,-500.0,0.00019782,2]
[408027173,1773046242785,-895.0,0.00019782,2]
[408027174,1773046242794,-201.70358089,0.00019782,2]
[408027175,1773046242803,-1828.0,0.00019782,2]
[408027176,1773046242812,-168.0,0.0001979,2]
[408027177,1773046242821,-7999.41632169,0.00019791,2]
[408027178,1773046242830,-575.20339411,0.00019796,2]
[408027179,1773046242839,-676.749,0.00019797,2]
[408027180,1773046242848,-1325.75653448,0.000198,30]
[408027181,1773046242858,-800.0,0.000198,7]
[408027182,1773046242868,-2000.0,0.000198,2]
[408027183,1773046242877,-967.1067069,0.000198,2]
[408027184,1773046242886,-500.0,0.00019809,2]
[408027185,1773046242896,-250.0,0.0001981,2]
[408027186,1773046242905,-133444.49566423,0.0001981,2]
[408027187,1773046242914,-7999.41632169,0.00019813,2]
[408027188,1773046242924,-220.0042566,0.0001983,2]
[408027189,1773046242933,-575.20339411,0.00019831,2]
[408027190,1773046242945,-7999.41632169,0.00019835,2]
[408027191,1773046242954,-201.82767376,0.00019836,2]
[408027192,1773046242963,-508.71326845,0.00019836,2]
[408027193,1773046242972,-162.63455783,0.00019836,2]
[408027194,1773046242981,-250.0,0.00019837,2]
[408027195,1773046242990,-500.0,0.00019837,2]
[408027196,1773046243000,-150.0,0.00019837,2]
[408027197,1773046243010,-500.0,0.00019837,2]
[408027198,1773046243019,-500.0,0.00019837,2]
[408027199,1773046243029,-500.0,0.00019837,2]
[408027201,1773046243039,-587.84963494,0.00019837,2]
[408027203,1773046243048,-1045.0,0.00019837,2]
[408027204,1773046243058,-492.0,0.00019837,2]
[408027206,1773046243067,-500.0,0.00019837,2]
[408027208,1773046243076,-500.0,0.00019837,2]
[408027209,1773046243085,-863.0,0.00019837,2]
[408027210,1773046243094,-500.0,0.00019837,2]
[408027211,1773046243104,-500.0,0.00019837,2]
[408027212,1773046243113,-895.0,0.00019837,2]
[408027213,1773046243122,-1828.0,0.00019837,2]
[408027214,1773046243132,-2000.0,0.0001985,2]
[408027215,1773046243141,-7999.41632169,0.00019856,2]
[408027216,1773046243150,-184.22758356,0.00019861,2]
[408027217,1773046243159,-575.20339411,0.00019865,2]
[408027218,1773046243168,-500.0,0.00019873,2]
[408027219,1773046243178,-25000.0,0.00019874,3]
[408027220,1773046243187,-250.0,0.00019874,3]
[408027221,1773046243196,-7999.41632169,0.00019878,2]
[408027222,1773046243205,-25000.0,0.00019882,3]
[408027223,1773046243215,-182.5,0.00019886,2]
[408027224,1773046243224,-617.9,0.00019891,2]
[408027225,1773046243233,-500.0,0.00019891,2]
[408027226,1773046243242,-500.0,0.00019891,2]
[408027227,1773046243252,-500.0,0.00019891,2]
[408027228,1773046243261,-500.0,0.00019891,2]
[408027229,1773046243270,-25000.0,0.00019891,3]
[408027230,1773046243280,-500.0,0.00019892,2]
[408027231,1773046243289,-250.0,0.00019892,2]
[408027232,1773046243298,-500.0,0.00019892,2]
[408027233,1773046243307,-500.0,0.00019892,2]
[408027234,1773046243317,-500.0,0.00019892,2]
[408027235,1773046243326,-1045.0,0.00019892,2]
[408027236,1773046243336,-492.0,0.00019892,2]
[408027237,1773046243345,-500.0,0.00019892,2]
[408027238,1773046243355,-500.0,0.00019892,2]
[408027239,1773046243364,-863.0,0.00019892,2]
[408027240,1773046243374,-219.05367316,0.00019892,2]
[408027241,1773046243383,-500.0,0.00019892,2]
[408027242,1773046243393,-895.0,0.00019892,2]
[408027243,1773046243402,-1828.0,0.00019892,2]
[408027244,1773046243412,-500.0,0.00019899,2]
[408027245,1773046243421,-500.0,0.00019899,2]
[408027246,1773046243431,-500.0,0.00019899,2]
[408027247,1773046243440,-500.0,0.00019899,2]
[408027248,1773046243450,-500.0,0.00019899,2]
[408027249,1773046243459,-500.0,0.00019899,2]
[408027250,1773046243468,-1045.51425875,0.000199,3]
[408027251,1773046244538,-308.67861533,0.000199,3]
[408027252,1773046244575,-8809.51682537,0.000199,3]
[408027253,1773046244588,-8947.21879473,0.000199,3]
[408027254,1773046244601,-5889.07150582,0.000199,3]
[408027255,1773046244610,-1000.0,0.000199,2]
[408027256,1773046244619,-2054.7123588,0.000199,2]
[408027257,1773046244630,-3579.51356271,0.000199,2]
[408027258,1773046244640,-2175.2614,0.000199,2]
[408027259,1773046244649,-3322.77369881,0.000199,3]
[408027266,1773046710706,150.0,0.00019372,120]
[408027279,1773046940780,274.49,9.215e-05,2]
[408027280,1773046940945,274.49,9.7e-05,2]
[408027281,1773046941146,274.49,0.00010185,2]
[408027282,1773046941336,274.49,0.0001067,2]
[408027283,1773046941541,274.49,0.00011155,2]
[408027284,1773046941734,274.49,0.0001164,2]
[408027285,1773046951970,-274.49,0.00012125,2]
[408027286,1773046951998,-274.49,0.0001261,2]
[408027287,1773046953923,13151.02,9.5e-05,3]
[408027288,1773046953949,10000.01,9.5e-05,3]
[408027289,1773046953975,5000.01,9.5e-05,3]
[408027290,1773046954001,13700.0,9.5e-05,3]
[408027291,1773046954031,80789.20805826,9.5e-05,3]
[408027292,1773046958672,-274.49,0.00013095,2]
[408027293,1773047022458,-274.49,0.0001358,2]
[408027294,1773047022488,-274.49,0.00014065,2]
[408027295,1773047022517,-274.49,0.00014551,2]
[408027296,1773047022546,-274.49,0.00015036,2]
[408027297,1773047022578,-274.49,0.00015521,2]
[408027298,1773047022607,-274.49,0.00016006,2]
[408027299,1773047022638,-500.0,0.0001611,2]
[408027300,1773047022676,-706.12440307,0.000162,5]
[408027301,1773047025342,-4293.88119386,0.000162,5]
[408027302,1773047025373,-274.49,0.00016491,2]
[408027303,1773047025403,-363.26761228,0.00016767,2]
[408027304,1773047028419,-136.73238772,0.00016767,2]
[408027305,1773047028448,-274.49,0.00016976,2]
[408027306,1773047028475,-506.0,0.00017,2]
[408027307,1773047028502,-998.20803551,0.000171,2]
[408027308,1773047028532,-849.22108386,0.00017211,2]
[408027309,1773047171976,224.62,0.00014,2]
[408027310,1773047254744,1336.96,0.00015462,2]
[408027316,1773047414418,5000.08,0.0001689,2]
[408027327,1773047431890,-506.0,0.00017,2]
[408027328,1773047431901,-2500.0,0.0001723,2]
[408027329,1773047431912,-274.49,0.00017461,2]
[408027330,1773047431922,-1299.49829808,0.00017568,2]
[408027331,1773047431932,-166.66,0.00017681,2]
[408027332,1773047431942,-500.0,0.00017753,2]
[408027333,1773047431951,-274.49,0.00017946,2]
[408027334,1773047431960,-150.0,0.00018053,2]
[408027335,1773047431970,-166.66,0.00018053,2]
[408027336,1773047431980,-2470.9,0.00018143,2]
[408027337,1773047431992,-154.33799867,0.00018186,2]
[408027338,1773047432009,-449.32076612,0.00018186,2]
[408027339,1773047432048,-2636.34123521,0.00018186,2]
[408027340,1773047432058,-500.0,0.000182,2]
[408027341,1773047432070,-1200.0,0.00018226,2]
[408027342,1773047432080,-200.0,0.00018227,2]
[408027343,1773047432091,-1831.7,0.00018227,2]
[408027344,1773047432101,-600.0,0.00018356,7]
[408027346,1773047432110,-700.0,0.00018356,7]
[408027347,1773047432120,-500.0,0.00018356,7]
[408027348,1773047432130,-714.69,0.00018423,2]
[408027349,1773047432139,-166.66,0.00018426,2]
[408027350,1773047432149,-150.0,0.00018426,30]
[408027352,1773047432158,-150.0,0.00018426,2]
[408027354,1773047432168,-274.49,0.00018431,2]
[408027356,1773047432177,-1552.28,0.00018456,2]
[408027358,1773047432186,-309.0,0.00018658,2]
[408027360,1773047432196,-2500.0,0.000187,2]
[408027362,1773047432205,-500.0,0.00018734,2]
[408027364,1773047432215,-2000.0,0.00018753,2]
[408027366,1773047432224,-166.66,0.00018798,2]
[408027368,1773047432233,-506.0,0.000188,3]
[408027370,1773047432242,-550.0,0.000188,2]
[408027372,1773047432251,-358.61,0.00018811,2]
[408027374,1773047432260,-500.0,0.0001884,2]
[408027376,1773047432271,-174.61919141,0.0001884,2]
[408027378,1773047432280,-500.0,0.0001884,2]
[408027380,1773047432290,-1469.73446645,0.0001885,2]
[408027382,1773047432299,-151.0,0.0001885,2]
[408027384,1773047432308,-151.0,0.0001885,2]
[408027386,1773047432317,-151.0,0.0001885,2]
[408027388,1773047432326,-151.0,0.0001885,2]
[408027390,1773047432335,-151.0,0.0001885,2]
[408027392,1773047432344,-202.29042562,0.0001885,2]
[408027394,1773047432354,-290.26104003,0.0001885,2]
[408027395,1773047432363,-3424.61,0.00018862,2]
[408027396,1773047432372,-207.82,0.00018908,2]
[408027397,1773047432381,-1609.36,0.00018973,2]
[408027398,1773047432390,-310.41600535,0.00018999,2]
[408027399,1773047432399,-503.02681123,0.00019,5]
[408027400,1773047432409,-810.449072,0.00019,2]
[408027401,1773047432418,-500.0,0.00019,2]
[408027402,1773047432427,-503.46587356,0.00019,2]
[408027403,1773047432437,-2831.0,0.0001904,2]
[408027404,1773047432446,-151.0,0.00019089,2]
[408027405,1773047432455,-461.0,0.00019143,2]
[408027406,1773047432464,-166.66,0.0001917,2]
[408027407,1773047432474,-1000.0,0.00019178,2]
[408027408,1773047432483,-358.61,0.00019191,2]
[408027409,1773047432492,-151.0,0.00019203,2]
[408027410,1773047432501,-195.0,0.00019207,2]
[408027411,1773047432510,-151.0,0.00019317,2]
[408027412,1773047432521,-153.40246871,0.00019343,2]
[408027413,1773047432531,-43997.41539606,0.00019347,2]
[408027420,1773047442504,-29462.89690394,0.00019347,2]
[408027421,1773047442514,-781.45,0.00019357,2]
[408027422,1773047442524,-1065.8356264,0.00019375,2]
[408027423,1773047442536,-181.08010149,0.00019388,2]
[408027424,1773047442546,-307.32256405,0.00019398,2]
[408027425,1773047442557,-162.63455783,0.00019425,2]
[408027426,1773047442566,-162.63455783,0.00019425,2]
[408027427,1773047442576,-151.0,0.0001943,2]
[408027428,1773047442587,-1609.36,0.00019447,2]
[408027429,1773047442596,-600.0,0.00019452,7]
[408027430,1773047442606,-700.0,0.00019452,7]
[408027431,1773047442615,-1000.0,0.00019452,2]
[408027432,1773047442624,-461.0,0.00019482,2]
[408027433,1773047442635,-1000.0,0.000195,2]
[408027434,1773047442645,-178.78,0.000195,2]
[408027435,1773047442655,-322.28723995,0.00019502,2]
[408027436,1773047442664,-900.0,0.00019539,2]
[408027437,1773047442674,-166.66,0.00019542,2]
[408027438,1773047442684,-250.0,0.00019544,2]
[408027439,1773047442693,-151.0,0.00019544,2]
[408027440,1773047442702,-695.0,0.00019563,2]
[408027441,1773047442712,-500.0,0.00019563,2]
[408027443,1773047442721,-500.0,0.00019563,2]
[408027445,1773047442731,-500.0,0.00019563,2]
[408027447,1773047442741,-500.0,0.00019563,2]
[408027449,1773047442751,-500.0,0.00019563,2]
[408027451,1773047442760,-835.0,0.00019563,2]
[408027452,1773047442770,-500.0,0.00019563,2]
[408027453,1773047442780,-500.0,0.00019563,2]
[408027454,1773047442789,-500.0,0.00019563,2]
[408027455,1773047442798,-500.0,0.00019563,2]
[408027456,1773047442808,-1071.0,0.00019563,2]
[408027457,1773047442817,-150.0,0.00019563,2]
[408027459,1773047442831,-580.0,0.00019563,2]
[408027460,1773047442841,-500.0,0.00019563,2]
[408027461,1773047442850,-150.0,0.00019563,2]
[408027462,1773047442860,-150.0,0.00019563,2]
[408027463,1773047442869,-500.0,0.00019563,2]
[408027464,1773047442879,-150.0,0.00019563,2]
[408027465,1773047442888,-150.0,0.00019563,2]
[408027466,1773047442898,-161.7233301,0.00019563,2]
[408027467,1773047442907,-150.0,0.00019563,2]
[408027468,1773047442917,-150.0,0.00019563,2]
[408027469,1773047442926,-500.0,0.00019563,2]
[408027470,1773047442935,-150.0,0.00019563,2]
[408027471,1773047442944,-500.0,0.00019563,2]
[408027472,1773047442954,-500.0,0.00019563,2]
[408027473,1773047442963,-150.0,0.00019563,2]
[408027474,1773047442973,-150.0,0.00019563,2]
[408027475,1773047442983,-150.0,0.00019563,2]
[408027476,1773047442993,-200.0,0.00019563,2]
[408027477,1773047443005,-500.0,0.00019563,2]
[408027478,1773047443018,-150.0,0.00019563,2]
[408027479,1773047443028,-150.0,0.00019563,2]
[408027480,1773047443039,-150.0,0.00019563,2]
[408027482,1773047443048,-500.0,0.00019563,2]
[408027483,1773047443058,-500.0,0.00019563,2]
[408027484,1773047443067,-150.0,0.00019563,2]
[408027485,1773047443079,-899.0,0.00019563,2]
[408027486,1773047443089,-1839.0,0.00019563,2]
[408027487,1773047443099,-500.0,0.00019563,2]
[408027488,1773047443109,-358.61700199,0.00019571,2]
[408027489,1773047443118,-250.0,0.00019575,2]
[408027490,1773047443128,-1397.96,0.00019589,2]
[408027491,1773047443137,-2500.0,0.00019597,2]
[408027492,1773047443147,-250.0,0.000196,2]
[408027493,1773047443156,-172.16862432,0.000196,2]
[408027494,1773047443165,-1875.164868,0.000196,2]
[408027495,1773047443175,-7999.41632174,0.0001961,2]
[408027496,1773047443185,-1000.0,0.00019611,2]
[408027497,1773047443194,-695.0,0.00019618,2]
[408027498,1773047443203,-500.0,0.00019618,2]
[408027499,1773047443216,-500.0,0.00019618,2]
[408027500,1773047443227,-500.0,0.00019618,2]
[408027501,1773047443236,-500.0,0.00019618,2]
[408027502,1773047443246,-500.0,0.00019618,2]
[408027503,1773047443256,-835.0,0.00019618,2]
[408027504,1773047443265,-500.0,0.00019618,2]
[408027505,1773047443275,-500.0,0.00019618,2]
[408027506,1773047443285,-500.0,0.00019618,2]
[408027507,1773047443295,-500.0,0.00019618,2]
[408027509,1773047443304,-1071.0,0.00019618,2]
[408027511,1773047443314,-277.09096331,0.00019618,2]
[408027512,1773047443323,-580.0,0.00019618,2]
[408027514,1773047443333,-500.0,0.00019618,2]
[408027515,1773047443342,-150.0,0.00019618,2]
[408027516,1773047443352,-150.0,0.00019618,2]
[408027517,1773047443361,-500.0,0.00019618,2]
[408027518,1773047443370,-150.0,0.00019618,2]
[408027519,1773047443380,-150.0,0.00019618,2]
[408027520,1773047443390,-150.0,0.00019618,2]
[408027521,1773047443399,-294.99040052,0.00019618,2]
[408027522,1773047443412,-500.0,0.00019618,2]
[408027523,1773047443422,-150.0,0.00019618,2]
[408027524,1773047443432,-500.0,0.00019618,2]
[408027525,1773047443441,-500.0,0.00019618,2]
[408027526,1773047443451,-150.0,0.00019618,2]
[408027527,1773047443461,-150.0,0.00019618,2]
[408027528,1773047443470,-496.01614418,0.00019618,2]
[408027529,1773047443480,-150.0,0.00019618,2]
[408027530,1773047443490,-500.0,0.00019618,2]
[408027531,1773047443500,-500.0,0.00019618,2]
[408027532,1773047443509,-500.0,0.00019618,2]
[408027533,1773047443519,-1839.0,0.00019618,2]
[408027534,1773047443529,-899.0,0.00019618,2]
[408027535,1773047443539,-250.0,0.00019618,2]
[408027536,1773047443549,-527.9894991,0.00019621,2]
[408027537,1773047443559,-253.0,0.00019626,2]
[408027538,1773047443569,-781.45,0.00019631,2]
[408027539,1773047443579,-772.2074,0.00019635,2]
[408027540,1773047443589,-7999.41632169,0.00019642,2]
[408027541,1773047443599,-151.0,0.00019658,2]
[408027542,1773047443612,-527.98949908,0.00019661,2]
[408027543,1773047443622,-256.0,0.0001967,5]
[408027544,1773047443631,-521.0,0.0001967,5]
[408027545,1773047443642,-695.0,0.00019673,2]
[408027546,1773047443652,-550.0,0.00019673,2]
[408027547,1773047443661,-500.0,0.00019673,2]
[408027548,1773047443671,-500.0,0.00019673,2]
[408027549,1773047443681,-354.61846768,0.00019673,2]
[408027550,1773047443691,-500.0,0.00019673,2]
[408027551,1773047443701,-835.0,0.00019673,2]
[408027552,1773047443711,-500.0,0.00019673,2]
[408027553,1773047443721,-501.82767376,0.00019673,2]
[408027554,1773047443731,-500.0,0.00019673,2]
[408027555,1773047443742,-1071.0,0.00019673,2]
[408027556,1773047443752,-580.0,0.00019673,2]
[408027557,1773047443762,-500.0,0.00019673,2]
[408027558,1773047443772,-200.0,0.00019673,2]
[408027559,1773047443783,-285.50154825,0.00019673,2]
[408027560,1773047443793,-500.0,0.00019673,2]
[408027561,1773047443804,-232.79888752,0.00019673,2]
[408027562,1773047443815,-152.96458514,0.00019673,2]
[408027563,1773047443824,-150.0,0.00019673,2]
[408027564,1773047443834,-200.0,0.00019673,2]
[408027565,1773047443843,-500.0,0.00019673,2]
[408027566,1773047443853,-200.00663282,0.00019673,2]
[408027567,1773047443862,-411.02563779,0.00019673,2]
[408027568,1773047443872,-500.0,0.00019673,2]
[408027569,1773047443881,-150.0,0.00019673,2]
[408027570,1773047443891,-150.0,0.00019673,2]
[408027571,1773047443900,-200.0,0.00019673,2]
[408027572,1773047443910,-392.34426162,0.00019673,2]
[408027573,1773047443919,-500.0,0.00019673,2]
[408027574,1773047443929,-500.0,0.00019673,2]
[408027575,1773047443939,-1839.0,0.00019673,2]
[408027576,1773047443948,-899.0,0.00019673,2]
[408027577,1773047443958,-250.0,0.00019673,2]
[408027578,1773047443967,-7999.41632169,0.00019674,2]
[408027579,1773047443977,-32918.3967,0.0001968,2]
[408027580,1773047443986,-500.0,0.00019697,2]
[408027581,1773047443996,-500.0,0.00019697,2]
[408027582,1773047444008,-628.01802048,0.00019697,2]
[408027583,1773047444018,-461.0,0.00019697,2]
[408027584,1773047444027,-527.98949908,0.00019701,2]
[408027585,1773047444039,-250.0,0.00019704,2]
[408027586,1773047444048,-7999.41632169,0.00019707,2]
[408027587,1773047444058,-500.0,0.0001971,2]
[408027588,1773047444068,-500.0,0.0001971,2]
[408027589,1773047444078,-173508.25989345,0.0001971,2]
[408027590,1773047444087,-922.0,0.00019721,2]
[408027591,1773047444097,-1213.0,0.00019721,2]
[408027592,1773047444106,-5994.0,0.00019721,2]
[408027593,1773047444116,-2461.0,0.00019721,2]
[408027594,1773047444125,-522.797,0.00019721,2]
[408027595,1773047444134,-1000.0,0.00019726,2]
[408027596,1773047444144,-695.0,0.00019727,2]
[408027597,1773047444153,-500.0,0.00019727,2]
[408027598,1773047444162,-500.0,0.00019727,2]
[408027599,1773047444171,-500.0,0.00019727,2]
[408027600,1773047444180,-835.0,0.00019727,2]
[408027601,1773047444199,-500.0,0.00019727,2]
[408027602,1773047444209,-500.0,0.00019727,2]
[408027603,1773047444219,-1071.0,0.00019727,2]
[408027604,1773047444228,-580.0,0.00019727,2]
[408027605,1773047444238,-500.0,0.00019727,2]
[408027606,1773047444247,-500.0,0.00019727,2]
[408027607,1773047444257,-150.0,0.00019727,2]
[408027608,1773047444266,-500.0,0.00019727,2]
[408027609,1773047444276,-605.47740234,0.00019727,2]
[408027610,1773047444286,-286.99459924,0.00019727,2]
[408027611,1773047444296,-150.0,0.00019727,2]
[408027612,1773047444306,-500.0,0.00019727,2]
[408027613,1773047444315,-1839.0,0.00019727,2]
[408027614,1773047444325,-201.70358089,0.00019727,2]
[408027615,1773047444335,-899.0,0.00019727,2]
[408027616,1773047444345,-500.0,0.00019733,2]
[408027617,1773047444354,-500.0,0.00019733,2]
[408027618,1773047444365,-500.0,0.00019733,2]
[408027619,1773047444374,-250.0,0.00019733,2]
[408027620,1773047444387,-7999.41632169,0.00019739,2]
[408027621,1773047444397,-461.0,0.00019741,2]
[408027622,1773047444407,-267.0,0.00019748,2]
[408027623,1773047444816,-250.0,0.00019748,2]
[408027624,1773047444828,-461.0,0.0001977,2]
[408027625,1773047444837,-3626.095,0.0001977,2]
[408027626,1773047444850,-181.736,0.0001977,2]
[408027627,1773047444861,-7999.41632169,0.00019771,2]
[408027628,1773047444870,-151.0,0.00019772,2]